[Event "*** Titled Tuesday Blitz AM"]
[Site "Chess.com"]
[Date "2020.01.07"]
[Round "1"]
[White "Colombiano07"]
[Black "Zq1"]
[Result "0-1"]
[WhiteElo "2163"]
[BlackElo "2579"]
[TimeControl "180+2"]
[EndTime "9:08:27 PST"]
[Termination "Zq1 won by checkmate"]

1. Nf3 {[%clk 0:02:59.8]} 1... d5 {[%clk 0:02:58.1]} 2. b3 {[%clk 0:02:59.7]}
2... c5 {[%clk 0:02:55.7]} 3. Bb2 {[%clk 0:03:00.9]} 3... f6 {[%clk 0:02:56.7]}
4. e3 {[%clk 0:02:55.8]} 4... e5 {[%clk 0:02:56.8]} 5. Bb5+ {[%clk 0:02:54.9]}
5... Bd7 {[%clk 0:02:55.7]} 6. a4 {[%clk 0:02:54.9]} 6... Nc6 {[%clk 0:02:55.6]}
7. O-O {[%clk 0:02:54.7]} 7... a6 {[%clk 0:02:56.6]} 8. Bxc6 {[%clk 0:02:55.5]}
8... Bxc6 {[%clk 0:02:57.1]} 9. d4 {[%clk 0:02:57.4]} 9... cxd4 {[%clk
0:02:57.4]} 10. exd4 {[%clk 0:02:58.1]} 10... e4 {[%clk 0:02:58.7]} 11. Re1
{[%clk 0:02:59.9]} 11... Bd6 {[%clk 0:02:55]} 12. c4 {[%clk 0:02:59.5]} 12...
Ne7 {[%clk 0:02:52.8]} 13. cxd5 {[%clk 0:02:55.7]} 13... Bxd5 {[%clk 0:02:52.6]}
14. Nc3 {[%clk 0:02:54.9]} 14... f5 {[%clk 0:02:48.5]} 15. Nxd5 {[%clk
0:02:40.4]} 15... Nxd5 {[%clk 0:02:48.9]} 16. Ne5 {[%clk 0:02:42.1]} 16... O-O
{[%clk 0:02:47.9]} 17. Rc1 {[%clk 0:02:31.7]} 17... Nf4 {[%clk 0:02:37.6]} 18.
Re3 {[%clk 0:02:11.4]} 18... Bxe5 {[%clk 0:02:29.5]} 19. dxe5 {[%clk 0:02:11.4]}
19... Nd3 {[%clk 0:02:30.3]} 20. Ba3 {[%clk 0:01:02.6]} 20... Nxc1 {[%clk
0:02:28]} 21. Qxc1 {[%clk 0:01:04.5]} 21... Rc8 {[%clk 0:02:27.3]} 22. Qa1
{[%clk 0:00:52.1]} 22... Qd2 {[%clk 0:02:24.8]} 23. Re1 {[%clk 0:00:26.8]} 23...
Rc2 {[%clk 0:02:16.2]} 24. Rf1 {[%clk 0:00:28.2]} 24... Re8 {[%clk 0:02:14.1]}
25. Bd6 {[%clk 0:00:20]} 25... e3 {[%clk 0:02:12.3]} 26. a5 {[%clk 0:00:07.8]}
26... exf2+ {[%clk 0:02:11.4]} 27. Kh1 {[%clk 0:00:08.8]} 27... Qd5 {[%clk
0:02:03.5]} 28. b4 {[%clk 0:00:08.5]} 28... Re2 {[%clk 0:02:00.6]} 29. h3 {[%clk
0:00:08.5]} 29... Qe4 {[%clk 0:01:56.9]} 30. Kh2 {[%clk 0:00:06.3]} 30... f4
{[%clk 0:01:52.1]} 31. Qc3 {[%clk 0:00:04.5]} 31... h6 {[%clk 0:01:47.7]} 32.
Qb3+ {[%clk 0:00:05.7]} 32... Kh7 {[%clk 0:01:46]} 33. Qf3 {[%clk 0:00:07.6]}
33... Qxf3 {[%clk 0:01:46.2]} 34. gxf3 {[%clk 0:00:09.5]} 34... Rc8 {[%clk
0:01:38.2]} 35. Kg2 {[%clk 0:00:08.9]} 35... Rcc2 {[%clk 0:01:37.3]} 36. Bc5
{[%clk 0:00:10]} 36... Rxe5 {[%clk 0:01:37]} 37. Rxf2 {[%clk 0:00:09]} 37...
Ree2 {[%clk 0:01:36.6]} 38. Rxe2 {[%clk 0:00:09.9]} 38... Rxe2+ {[%clk
0:01:37.6]} 39. Kf1 {[%clk 0:00:11.8]} 39... Rh2 {[%clk 0:01:36.9]} 40. Bd6
{[%clk 0:00:12.7]} 40... Rxh3 {[%clk 0:01:34.4]} 41. Kg2 {[%clk 0:00:13.6]}
41... Rh4 {[%clk 0:01:29.9]} 42. Be7 {[%clk 0:00:13.1]} 42... Rh5 {[%clk
0:01:28.5]} 43. Bd6 {[%clk 0:00:13.5]} 43... Rf5 {[%clk 0:01:27.1]} 44. Kh3
{[%clk 0:00:13.9]} 44... g5 {[%clk 0:01:28.1]} 45. Kg4 {[%clk 0:00:14.2]} 45...
Kg6 {[%clk 0:01:29.6]} 46. Bc5 {[%clk 0:00:14.4]} 46... h5+ {[%clk 0:01:28.9]}
47. Kh3 {[%clk 0:00:15.7]} 47... Rd5 {[%clk 0:01:28.1]} 48. Be7 {[%clk
0:00:14.8]} 48... Kf5 {[%clk 0:01:27.8]} 49. Bc5 {[%clk 0:00:14.9]} 49... Rd2
{[%clk 0:01:26.9]} 50. Bg1 {[%clk 0:00:10]} 50... g4+ {[%clk 0:01:20.3]} 51.
fxg4+ {[%clk 0:00:10.4]} 51... hxg4+ {[%clk 0:01:17.5]} 52. Kh4 {[%clk
0:00:12.3]} 52... Rg2 {[%clk 0:01:16.8]} 53. b5 {[%clk 0:00:11.2]} 53... Rxg1
{[%clk 0:01:16.6]} 54. b6 {[%clk 0:00:10.4]} 54... Rh1# {[%clk 0:01:17.3]} 0-1

[Event "*** Titled Tuesday Blitz AM"]
[Site "Chess.com"]
[Date "2020.01.07"]
[Round "1"]
[White "LonesomeGeorge1"]
[Black "Kirill_Klukin"]
[Result "0-1"]
[WhiteElo "2320"]
[BlackElo "2702"]
[TimeControl "180+2"]
[EndTime "9:08:36 PST"]
[Termination "Kirill_Klukin won by resignation"]

1. e4 {[%clk 0:03:01.9]} 1... c5 {[%clk 0:03:00.6]} 2. Nf3 {[%clk 0:03:02.9]}
2... Nc6 {[%clk 0:03:01.8]} 3. Bb5 {[%clk 0:03:03.4]} 3... g6 {[%clk 0:03:02.6]}
4. Bxc6 {[%clk 0:03:02.9]} 4... bxc6 {[%clk 0:03:04]} 5. O-O {[%clk 0:03:02.9]}
5... Bg7 {[%clk 0:03:05.1]} 6. Re1 {[%clk 0:03:04.4]} 6... Nh6 {[%clk
0:03:06.2]} 7. c3 {[%clk 0:03:05.1]} 7... O-O {[%clk 0:03:07.8]} 8. h3 {[%clk
0:03:05.8]} 8... f6 {[%clk 0:03:08.6]} 9. d4 {[%clk 0:03:06.1]} 9... cxd4 {[%clk
0:03:10.5]} 10. cxd4 {[%clk 0:03:08]} 10... Nf7 {[%clk 0:03:11.2]} 11. Nc3
{[%clk 0:03:09.3]} 11... d6 {[%clk 0:03:12.5]} 12. b3 {[%clk 0:03:05.7]} 12...
Qa5 {[%clk 0:03:12.9]} 13. Bb2 {[%clk 0:03:04.3]} 13... Bd7 {[%clk 0:03:13.9]}
14. Qd2 {[%clk 0:02:45.9]} 14... Qh5 {[%clk 0:03:09.8]} 15. Rad1 {[%clk
0:02:42.9]} 15... Bxh3 {[%clk 0:03:06.6]} 16. gxh3 {[%clk 0:02:32.6]} 16... Qxf3
{[%clk 0:03:07.4]} 17. Qe3 {[%clk 0:02:32.6]} 17... Qh5 {[%clk 0:03:07.4]} 18.
Ne2 {[%clk 0:02:28.2]} 18... Ng5 {[%clk 0:02:55.4]} 19. Kg2 {[%clk 0:02:25.5]}
19... Bh6 {[%clk 0:02:54.5]} 20. Nf4 {[%clk 0:02:19.9]} 20... Qh4 {[%clk
0:02:52.1]} 21. Qg3 {[%clk 0:02:18.7]} 21... Qxg3+ {[%clk 0:02:51.4]} 22. fxg3
{[%clk 0:02:18.7]} 22... a5 {[%clk 0:02:39.4]} 23. h4 {[%clk 0:02:11.1]} 23...
Nf7 {[%clk 0:02:40.3]} 24. Ne6 {[%clk 0:02:11.9]} 24... Rfc8 {[%clk 0:02:42]}
25. e5 {[%clk 0:01:59.5]} 25... f5 {[%clk 0:02:36.6]} 26. exd6 {[%clk 0:01:40]}
26... exd6 {[%clk 0:02:37.8]} 27. Bc1 {[%clk 0:01:27.1]} 27... a4 {[%clk
0:02:25.9]} 28. Bxh6 {[%clk 0:01:13.7]} 28... Nxh6 {[%clk 0:02:27.8]} 29. Ng5
{[%clk 0:01:13.9]} 29... axb3 {[%clk 0:02:27.9]} 30. axb3 {[%clk 0:01:14.3]}
30... Ra2+ {[%clk 0:02:29]} 31. Kg1 {[%clk 0:00:59.8]} 31... f4 {[%clk
0:01:59.4]} 32. Re7 {[%clk 0:00:49]} 32... fxg3 {[%clk 0:01:49.9]} 33. Nxh7
{[%clk 0:00:41.2]} 33... Ng4 {[%clk 0:01:48.9]} 34. Rf1 {[%clk 0:00:24.6]} 34...
Rf2 {[%clk 0:01:45.5]} 35. Rfe1 {[%clk 0:00:15.6]} 35... Ra8 {[%clk 0:00:58.8]}
36. Ng5 {[%clk 0:00:09.4]} 36... Raa2 {[%clk 0:00:52.3]} 37. Re8+ {[%clk
0:00:09.6]} 37... Rf8 {[%clk 0:00:53.4]} 38. R1e7 {[%clk 0:00:07.3]} 38... Rf2
{[%clk 0:00:38.3]} 39. Rxf8+ {[%clk 0:00:06.7]} 39... Kxf8 {[%clk 0:00:39.2]}
40. Rd7 {[%clk 0:00:07.8]} 40... d5 {[%clk 0:00:37.7]} 41. Nh7+ {[%clk
0:00:05.3]} 41... Kg8 {[%clk 0:00:36.8]} 42. Ng5 {[%clk 0:00:05.8]} 42... Ne3
{[%clk 0:00:37.3]} 0-1

[Event "*** Titled Tuesday Blitz AM"]
[Site "Chess.com"]
[Date "2020.01.07"]
[Round "1"]
[White "hazy13"]
[Black "gmasterkiller"]
[Result "0-1"]
[WhiteElo "2219"]
[BlackElo "2611"]
[TimeControl "180+2"]
[EndTime "9:08:45 PST"]
[Termination "gmasterkiller won by checkmate"]

1. d4 {[%clk 0:03:01.1]} 1... Nf6 {[%clk 0:02:59.3]} 2. c4 {[%clk 0:03:01.1]}
2... e6 {[%clk 0:02:59.2]} 3. Nc3 {[%clk 0:03:00.7]} 3... Bb4 {[%clk 0:02:58.5]}
4. f3 {[%clk 0:03:01.4]} 4... c5 {[%clk 0:02:57.3]} 5. a3 {[%clk 0:03:00.4]}
5... Bxc3+ {[%clk 0:02:55]} 6. bxc3 {[%clk 0:03:02.3]} 6... d5 {[%clk
0:02:52.2]} 7. cxd5 {[%clk 0:03:00.4]} 7... Nxd5 {[%clk 0:02:51.5]} 8. dxc5
{[%clk 0:02:59.2]} 8... Qa5 {[%clk 0:02:51.4]} 9. e4 {[%clk 0:02:57.2]} 9... Ne7
{[%clk 0:02:51]} 10. Qd4 {[%clk 0:02:32.7]} 10... Nbc6 {[%clk 0:02:50.6]} 11.
Qe3 {[%clk 0:01:54]} 11... O-O {[%clk 0:02:32.3]} 12. Nh3 {[%clk 0:01:19.3]}
12... e5 {[%clk 0:02:18.4]} 13. Be2 {[%clk 0:00:59.7]} 13... b6 {[%clk
0:02:17.6]} 14. cxb6 {[%clk 0:00:55.8]} 14... axb6 {[%clk 0:02:19.2]} 15. O-O
{[%clk 0:00:55.5]} 15... Ba6 {[%clk 0:02:16.4]} 16. Nf2 {[%clk 0:00:43.2]} 16...
Rfc8 {[%clk 0:02:15.7]} 17. Bd2 {[%clk 0:00:32.9]} 17... Bxe2 {[%clk 0:02:11.9]}
18. Qxe2 {[%clk 0:00:34]} 18... Qa4 {[%clk 0:02:13.8]} 19. Nd3 {[%clk 0:00:32]}
19... f6 {[%clk 0:01:44.8]} 20. Nb4 {[%clk 0:00:29.1]} 20... Na5 {[%clk
0:01:29.2]} 21. Ra2 {[%clk 0:00:14.7]} 21... Nc4 {[%clk 0:01:18.3]} 22. Rd1
{[%clk 0:00:12.9]} 22... Qb3 {[%clk 0:01:17.7]} 23. Be1 {[%clk 0:00:12]} 23...
Rd8 {[%clk 0:01:13.8]} 24. Nd5 {[%clk 0:00:07]} 24... Nxd5 {[%clk 0:01:11.7]}
25. exd5 {[%clk 0:00:08.9]} 25... b5 {[%clk 0:01:05.5]} 26. Bf2 {[%clk
0:00:09.6]} 26... Qxc3 {[%clk 0:01:05]} 27. Rc2 {[%clk 0:00:10.8]} 27... Qxa3
{[%clk 0:01:03.3]} 28. Rxc4 {[%clk 0:00:12.2]} 28... bxc4 {[%clk 0:01:03.7]} 29.
Qxc4 {[%clk 0:00:14.1]} 29... Qa2 {[%clk 0:01:05.2]} 30. Qc7 {[%clk 0:00:11.8]}
30... Rxd5 {[%clk 0:01:04.4]} 31. Rxd5 {[%clk 0:00:08.3]} 31... Qxd5 {[%clk
0:01:02.7]} 32. h3 {[%clk 0:00:09.7]} 32... h6 {[%clk 0:01:01.1]} 33. Qc3 {[%clk
0:00:08.5]} 33... Qe6 {[%clk 0:00:57.1]} 34. Kh2 {[%clk 0:00:09.1]} 34... Rc8
{[%clk 0:00:56.9]} 35. Qa3 {[%clk 0:00:08.6]} 35... Re8 {[%clk 0:00:45.1]} 36.
Qa7 {[%clk 0:00:07.3]} 36... Qf7 {[%clk 0:00:47]} 37. Qe3 {[%clk 0:00:08]} 37...
Qg6 {[%clk 0:00:26.5]} 38. Qc3 {[%clk 0:00:08]} 38... Kh7 {[%clk 0:00:26.9]} 39.
Be3 {[%clk 0:00:08.1]} 39... Rd8 {[%clk 0:00:27.7]} 40. Bf2 {[%clk 0:00:09.1]}
40... Rd3 {[%clk 0:00:29.6]} 41. Qc5 {[%clk 0:00:09.3]} 41... Rd2 {[%clk
0:00:30.6]} 42. Qe3 {[%clk 0:00:09.3]} 42... Qc2 {[%clk 0:00:31.5]} 43. Kg1
{[%clk 0:00:08.6]} 43... Re2 {[%clk 0:00:32.9]} 44. Qa7 {[%clk 0:00:09]} 44...
Qd1+ {[%clk 0:00:34]} 45. Kh2 {[%clk 0:00:10.1]} 45... Qf1 {[%clk 0:00:35.3]}
46. Kg3 {[%clk 0:00:10.5]} 46... f5 {[%clk 0:00:36.9]} 47. Bc5 {[%clk
0:00:07.2]} 47... Qxg2+ {[%clk 0:00:37.1]} 48. Kh4 {[%clk 0:00:08.5]} 48... Qg5#
{[%clk 0:00:39]} 0-1

[Event "*** Titled Tuesday Blitz AM"]
[Site "Chess.com"]
[Date "2020.01.07"]
[Round "1"]
[White "novocane"]
[Black "IMRosen"]
[Result "1-0"]
[WhiteElo "2188"]
[BlackElo "2575"]
[TimeControl "180+2"]
[EndTime "9:08:46 PST"]
[Termination "novocane won by checkmate"]

1. d4 {[%clk 0:03:01.7]} 1... d5 {[%clk 0:02:54.8]} 2. c4 {[%clk 0:03:02.7]}
2... e6 {[%clk 0:02:55.1]} 3. Nc3 {[%clk 0:03:03.6]} 3... Nf6 {[%clk 0:02:54.3]}
4. cxd5 {[%clk 0:03:04.5]} 4... exd5 {[%clk 0:02:55.2]} 5. Bg5 {[%clk
0:03:05.3]} 5... c6 {[%clk 0:02:53.7]} 6. Qc2 {[%clk 0:03:05.9]} 6... Bd6 {[%clk
0:02:52]} 7. e3 {[%clk 0:02:58]} 7... O-O {[%clk 0:02:50.7]} 8. Bd3 {[%clk
0:02:58.1]} 8... h6 {[%clk 0:02:44.8]} 9. h4 {[%clk 0:02:50.8]} 9... hxg5 {[%clk
0:02:19.9]} 10. hxg5 {[%clk 0:02:47.2]} 10... Ne4 {[%clk 0:02:21.1]} 11. Bxe4
{[%clk 0:02:42.4]} 11... dxe4 {[%clk 0:01:58.7]} 12. Qxe4 {[%clk 0:02:42.6]}
12... f5 {[%clk 0:01:52.2]} 13. Qh4 {[%clk 0:02:03]} 13... Kf7 {[%clk
0:01:18.1]} 14. Qh5+ {[%clk 0:01:17]} 14... Ke7 {[%clk 0:01:08.2]} 15. Nf3
{[%clk 0:00:50.4]} 15... Be6 {[%clk 0:01:00.6]} 16. Qg6 {[%clk 0:00:30.3]} 16...
Rf7 {[%clk 0:00:51.2]} 17. O-O-O {[%clk 0:00:27.6]} 17... Bd5 {[%clk 0:00:34.8]}
18. Ne5 {[%clk 0:00:26.6]} 18... Bxe5 {[%clk 0:00:18.1]} 19. dxe5 {[%clk
0:00:27.7]} 19... Qd7 {[%clk 0:00:16.1]} 20. e4 {[%clk 0:00:18.4]} 20... fxe4
{[%clk 0:00:15]} 21. Nxe4 {[%clk 0:00:18.1]} 21... Qe6 {[%clk 0:00:15]} 22. Qh7
{[%clk 0:00:11.9]} 22... Nd7 {[%clk 0:00:14.9]} 23. Nd6 {[%clk 0:00:11.1]} 23...
Raf8 {[%clk 0:00:08.5]} 24. Nxf7 {[%clk 0:00:11.1]} 24... Rxf7 {[%clk
0:00:10.4]} 25. f4 {[%clk 0:00:12.3]} 25... Bxa2 {[%clk 0:00:08.2]} 26. Qd3
{[%clk 0:00:09.6]} 26... Bd5 {[%clk 0:00:06]} 27. Rh7 {[%clk 0:00:09]} 27... Nc5
{[%clk 0:00:07.2]} 28. Qa3 {[%clk 0:00:07.6]} 28... b6 {[%clk 0:00:04.6]} 29.
Qxa7+ {[%clk 0:00:08]} 29... Nd7 {[%clk 0:00:04.3]} 30. Qa3+ {[%clk 0:00:08.5]}
30... c5 {[%clk 0:00:05.3]} 31. g3 {[%clk 0:00:09.6]} 31... Qd6 {[%clk
0:00:05.4]} 32. exd6+ {[%clk 0:00:10.4]} 32... Kxd6 {[%clk 0:00:07.3]} 33. Qd3
{[%clk 0:00:11.2]} 33... Kc6 {[%clk 0:00:03.7]} 34. Qxd5+ {[%clk 0:00:12.3]}
34... Kb5 {[%clk 0:00:05.1]} 35. Qxf7 {[%clk 0:00:13.2]} 35... Nb8 {[%clk
0:00:07]} 36. Qxg7 {[%clk 0:00:14.1]} 36... Nc6 {[%clk 0:00:08.9]} 37. Qd7
{[%clk 0:00:15]} 37... c4 {[%clk 0:00:09.7]} 38. Rh6 {[%clk 0:00:16.1]} 38...
Kb4 {[%clk 0:00:11.3]} 39. Qxc6 {[%clk 0:00:16.9]} 39... b5 {[%clk 0:00:13.2]}
40. Qd6+ {[%clk 0:00:18.2]} 40... Kb3 {[%clk 0:00:15.1]} 41. Rd3+ {[%clk
0:00:18.5]} 41... cxd3 {[%clk 0:00:15.2]} 42. Qxd3+ {[%clk 0:00:19.4]} 42... Kb4
{[%clk 0:00:17]} 43. Qc3+ {[%clk 0:00:20.3]} 43... Ka4 {[%clk 0:00:17.9]} 44.
Ra6# {[%clk 0:00:21.3]} 1-0

[Event "*** Titled Tuesday Blitz AM"]
[Site "Chess.com"]
[Date "2020.01.07"]
[Round "1"]
[White "Region_07"]
[Black "Zubrrr"]
[Result "0-1"]
[WhiteElo "2361"]
[BlackElo "2718"]
[TimeControl "180+2"]
[EndTime "9:08:48 PST"]
[Termination "Zubrrr won by resignation"]

1. d4 {[%clk 0:02:51.8]} 1... f5 {[%clk 0:02:56]} 2. c4 {[%clk 0:02:47.9]} 2...
Nf6 {[%clk 0:02:55.1]} 3. Nc3 {[%clk 0:02:48.4]} 3... g6 {[%clk 0:02:53]} 4. h4
{[%clk 0:02:48.2]} 4... h6 {[%clk 0:02:43.4]} 5. Nf3 {[%clk 0:02:36.5]} 5... d6
{[%clk 0:02:43]} 6. e3 {[%clk 0:01:59.6]} 6... Bg7 {[%clk 0:02:34.9]} 7. b3
{[%clk 0:01:53.6]} 7... O-O {[%clk 0:02:29.5]} 8. Bb2 {[%clk 0:01:54.9]} 8... e6
{[%clk 0:02:22.1]} 9. Qc2 {[%clk 0:01:55.1]} 9... Qe7 {[%clk 0:02:07.8]} 10.
O-O-O {[%clk 0:01:54.4]} 10... Nbd7 {[%clk 0:01:51.6]} 11. Bd3 {[%clk
0:01:44.1]} 11... e5 {[%clk 0:01:50.4]} 12. e4 {[%clk 0:01:35.6]} 12... f4
{[%clk 0:01:42.9]} 13. Nd5 {[%clk 0:01:31.8]} 13... Qd8 {[%clk 0:01:13.2]} 14.
dxe5 {[%clk 0:01:31]} 14... dxe5 {[%clk 0:01:15.1]} 15. c5 {[%clk 0:01:10.3]}
15... Ng4 {[%clk 0:00:50.8]} 16. Bc4 {[%clk 0:00:56]} 16... Kh7 {[%clk
0:00:48.9]} 17. Ng5+ {[%clk 0:00:54.7]} 17... hxg5 {[%clk 0:00:39.9]} 18. hxg5+
{[%clk 0:00:56.6]} 18... Nh6 {[%clk 0:00:40.9]} 19. gxh6 {[%clk 0:00:14]} 19...
Bf6 {[%clk 0:00:42.1]} 20. c6 {[%clk 0:00:12.9]} 20... bxc6 {[%clk 0:00:42.1]}
21. Nxf6+ {[%clk 0:00:13.2]} 21... Qxf6 {[%clk 0:00:43]} 22. Bc3 {[%clk
0:00:12.8]} 22... Nb6 {[%clk 0:00:37.2]} 23. Be2 {[%clk 0:00:11]} 23... a5
{[%clk 0:00:36.2]} 24. Qb2 {[%clk 0:00:12.1]} 24... Re8 {[%clk 0:00:37.6]} 25.
a4 {[%clk 0:00:12.7]} 25... Bb7 {[%clk 0:00:29.8]} 26. g3 {[%clk 0:00:13.5]}
26... c5 {[%clk 0:00:26.5]} 27. Bd3 {[%clk 0:00:09.7]} 27... Re7 {[%clk
0:00:21.8]} 28. Bc2 {[%clk 0:00:10.2]} 28... c4 {[%clk 0:00:21]} 29. Qa3 {[%clk
0:00:11.3]} 29... cxb3 {[%clk 0:00:20.9]} 30. Bxb3 {[%clk 0:00:13.2]} 30... Bxe4
{[%clk 0:00:21.3]} 31. gxf4 {[%clk 0:00:13.5]} 31... Qxf4+ {[%clk 0:00:20.2]}
32. Kb2 {[%clk 0:00:15]} 32... Rae8 {[%clk 0:00:16.6]} 33. Rdg1 {[%clk
0:00:14.3]} 33... Qxf2+ {[%clk 0:00:17.3]} 34. Ka1 {[%clk 0:00:14.5]} 34... Bxh1
{[%clk 0:00:18.4]} 35. Rxh1 {[%clk 0:00:15.4]} 35... Qf3 {[%clk 0:00:17.8]} 36.
Bc2 {[%clk 0:00:15.7]} 36... Qxh1+ {[%clk 0:00:18.4]} 37. Ka2 {[%clk 0:00:17.3]}
37... Qd5+ {[%clk 0:00:19]} 38. Ka1 {[%clk 0:00:16.6]} 38... e4 {[%clk
0:00:17.8]} 39. Bb3 {[%clk 0:00:15.2]} 39... Qf5 {[%clk 0:00:18.7]} 40. Qc1
{[%clk 0:00:14.1]} 40... e3 {[%clk 0:00:19.7]} 41. Bc2 {[%clk 0:00:14.7]} 41...
Qf7 {[%clk 0:00:18.4]} 42. Qg1 {[%clk 0:00:13.6]} 42... e2 {[%clk 0:00:19.5]}
0-1

[Event "*** Titled Tuesday Blitz AM"]
[Site "Chess.com"]
[Date "2020.01.07"]
[Round "1"]
[White "ferdipy"]
[Black "econpower"]
[Result "0-1"]
[WhiteElo "2249"]
[BlackElo "2635"]
[TimeControl "180+2"]
[EndTime "9:08:50 PST"]
[Termination "econpower won by resignation"]

1. e4 {[%clk 0:03:01]} 1... c5 {[%clk 0:03:00.6]} 2. d4 {[%clk 0:03:00.8]} 2...
cxd4 {[%clk 0:03:01.6]} 3. c3 {[%clk 0:03:02]} 3... d3 {[%clk 0:03:02.7]} 4. c4
{[%clk 0:03:02.7]} 4... Nc6 {[%clk 0:03:04.6]} 5. Bxd3 {[%clk 0:03:04]} 5... g6
{[%clk 0:03:06.1]} 6. Nf3 {[%clk 0:03:05.9]} 6... Bg7 {[%clk 0:03:08]} 7. O-O
{[%clk 0:03:07.4]} 7... d6 {[%clk 0:03:09.7]} 8. h3 {[%clk 0:03:07]} 8... Nf6
{[%clk 0:03:11]} 9. Nc3 {[%clk 0:03:08.6]} 9... O-O {[%clk 0:03:12.5]} 10. Be3
{[%clk 0:03:10.2]} 10... Be6 {[%clk 0:03:13.3]} 11. Rc1 {[%clk 0:03:10.2]} 11...
Qa5 {[%clk 0:03:14.7]} 12. Qe2 {[%clk 0:03:07.4]} 12... Rac8 {[%clk 0:03:15.8]}
13. b3 {[%clk 0:03:06.3]} 13... Rfd8 {[%clk 0:03:11]} 14. Rfd1 {[%clk
0:03:06.4]} 14... Ne8 {[%clk 0:03:05.3]} 15. Nd5 {[%clk 0:03:04.4]} 15... Bxd5
{[%clk 0:03:01.1]} 16. exd5 {[%clk 0:03:00.2]} 16... Ne5 {[%clk 0:03:02.1]} 17.
Nxe5 {[%clk 0:02:59.4]} 17... Bxe5 {[%clk 0:03:04]} 18. Bh6 {[%clk 0:02:55.3]}
18... Qc7 {[%clk 0:02:57.8]} 19. f4 {[%clk 0:02:44.7]} 19... Bg7 {[%clk
0:02:58]} 20. Bg5 {[%clk 0:02:43.2]} 20... Bf6 {[%clk 0:02:56.9]} 21. Bh6 {[%clk
0:02:42.9]} 21... Bg7 {[%clk 0:02:40.3]} 22. Bg5 {[%clk 0:02:43.3]} 22... Nf6
{[%clk 0:02:39]} 23. Bh4 {[%clk 0:02:44.3]} 23... Re8 {[%clk 0:02:39.3]} 24. Qf3
{[%clk 0:02:37.6]} 24... Qa5 {[%clk 0:02:38.1]} 25. Rc2 {[%clk 0:02:28.1]} 25...
b5 {[%clk 0:02:38.3]} 26. Be1 {[%clk 0:02:22.5]} 26... Qa3 {[%clk 0:02:26.8]}
27. Bf2 {[%clk 0:01:56.8]} 27... Nd7 {[%clk 0:02:21.3]} 28. Re1 {[%clk
0:01:50.2]} 28... bxc4 {[%clk 0:02:05.3]} 29. Bxc4 {[%clk 0:01:47.6]} 29... Nb6
{[%clk 0:02:04.6]} 30. Rec1 {[%clk 0:01:21.3]} 30... Nxc4 {[%clk 0:01:51.1]} 31.
bxc4 {[%clk 0:01:16.5]} 31... Qxf3 {[%clk 0:01:44.1]} 32. gxf3 {[%clk
0:01:18.4]} 32... Rc7 {[%clk 0:01:45.8]} 33. c5 {[%clk 0:01:18.9]} 33... dxc5
{[%clk 0:01:45.6]} 34. Rxc5 {[%clk 0:01:19.5]} 34... Rd7 {[%clk 0:01:47.1]} 35.
Ra5 {[%clk 0:01:15.6]} 35... Bf6 {[%clk 0:01:31.3]} 36. Bxa7 {[%clk 0:01:09.7]}
36... Ra8 {[%clk 0:01:30.4]} 37. Bb6 {[%clk 0:01:10.4]} 37... Rxa5 {[%clk
0:01:30.8]} 38. Bxa5 {[%clk 0:01:12.3]} 38... Rxd5 {[%clk 0:01:14.8]} 39. Bc7
{[%clk 0:00:58.1]} 39... Rd4 {[%clk 0:00:49.6]} 40. Be5 {[%clk 0:00:35]} 40...
Ra4 {[%clk 0:00:46.6]} 41. Bxf6 {[%clk 0:00:34.3]} 41... exf6 {[%clk 0:00:47.7]}
42. Ra1 {[%clk 0:00:31.3]} 42... Ra3 {[%clk 0:00:44.9]} 43. Kf2 {[%clk
0:00:31.8]} 43... Kf8 {[%clk 0:00:46.5]} 44. Ke2 {[%clk 0:00:31.5]} 44... Ke7
{[%clk 0:00:48.1]} 45. Kd2 {[%clk 0:00:32.9]} 45... Kd6 {[%clk 0:00:49.6]} 46.
Kc2 {[%clk 0:00:33.2]} 46... Kc6 {[%clk 0:00:49.4]} 47. Kb2 {[%clk 0:00:30]}
47... Rxf3 {[%clk 0:00:50.3]} 48. a4 {[%clk 0:00:30]} 48... Kb6 {[%clk
0:00:51.5]} 49. Re1 {[%clk 0:00:23.9]} 49... Rxf4 {[%clk 0:00:51.2]} 50. Re7
{[%clk 0:00:23.6]} 50... f5 {[%clk 0:00:51.2]} 51. Rxf7 {[%clk 0:00:23.6]} 51...
Rh4 {[%clk 0:00:52.1]} 52. Rf6+ {[%clk 0:00:16.3]} 52... Ka5 {[%clk 0:00:52.5]}
53. Rf7 {[%clk 0:00:16.1]} 53... Kxa4 {[%clk 0:00:53]} 0-1

[Event "*** Titled Tuesday Blitz AM"]
[Site "Chess.com"]
[Date "2020.01.07"]
[Round "1"]
[White "Parhamov"]
[Black "rquery98"]
[Result "1-0"]
[WhiteElo "3055"]
[BlackElo "2524"]
[TimeControl "180+2"]
[EndTime "9:08:53 PST"]
[Termination "Parhamov won on time"]

1. d4 {[%clk 0:03:00.9]} 1... Nf6 {[%clk 0:03:00.4]} 2. c4 {[%clk 0:03:02.4]}
2... g6 {[%clk 0:03:01.2]} 3. Nc3 {[%clk 0:03:03]} 3... d5 {[%clk 0:03:02.9]} 4.
cxd5 {[%clk 0:03:04]} 4... Nxd5 {[%clk 0:03:04.8]} 5. Bd2 {[%clk 0:03:05.4]}
5... Bg7 {[%clk 0:03:02.1]} 6. e4 {[%clk 0:03:06.3]} 6... Nb6 {[%clk 0:02:58.4]}
7. Be3 {[%clk 0:03:07.4]} 7... O-O {[%clk 0:02:56]} 8. Bb5 {[%clk 0:03:06.9]}
8... Be6 {[%clk 0:02:34]} 9. Nge2 {[%clk 0:03:07.2]} 9... c6 {[%clk 0:02:28.8]}
10. Bd3 {[%clk 0:03:07.9]} 10... Nc4 {[%clk 0:02:30.4]} 11. Bxc4 {[%clk
0:02:59.5]} 11... Bxc4 {[%clk 0:02:32]} 12. h4 {[%clk 0:02:58.7]} 12... e5
{[%clk 0:02:26.8]} 13. dxe5 {[%clk 0:02:53.2]} 13... Bxe5 {[%clk 0:02:22.9]} 14.
h5 {[%clk 0:02:50.8]} 14... Na6 {[%clk 0:02:11.7]} 15. hxg6 {[%clk 0:02:49.5]}
15... hxg6 {[%clk 0:02:06.2]} 16. a3 {[%clk 0:02:49.4]} 16... Nc7 {[%clk
0:02:03.1]} 17. Qa4 {[%clk 0:02:34.3]} 17... Bxe2 {[%clk 0:01:50]} 18. Kxe2
{[%clk 0:02:28.3]} 18... Qf6 {[%clk 0:01:32.2]} 19. Rh3 {[%clk 0:02:19.3]} 19...
Ne6 {[%clk 0:01:24.1]} 20. Rah1 {[%clk 0:02:20.2]} 20... Nd4+ {[%clk 0:01:17.1]}
21. Kf1 {[%clk 0:02:20.8]} 21... Rfd8 {[%clk 0:01:07.1]} 22. f4 {[%clk
0:02:17.3]} 22... Ne6 {[%clk 0:00:58.2]} 23. Rh8+ {[%clk 0:02:01.7]} 23... Qxh8
{[%clk 0:00:58.5]} 24. Rxh8+ {[%clk 0:02:03.4]} 24... Bxh8 {[%clk 0:01:00.4]}
25. e5 {[%clk 0:02:05]} 25... Bg7 {[%clk 0:01:01.9]} 26. g4 {[%clk 0:02:04.2]}
26... Nc7 {[%clk 0:00:43.8]} 27. Qe4 {[%clk 0:02:04]} 27... Nd5 {[%clk
0:00:44.7]} 28. Nxd5 {[%clk 0:02:05.2]} 28... Rxd5 {[%clk 0:00:43.4]} 29. Bd4
{[%clk 0:02:03.5]} 29... Rad8 {[%clk 0:00:39]} 30. Bc3 {[%clk 0:02:04.7]} 30...
Re8 {[%clk 0:00:36.9]} 31. Qb4 {[%clk 0:02:03]} 31... b5 {[%clk 0:00:35.1]} 32.
Qa5 {[%clk 0:02:03.8]} 32... Rd7 {[%clk 0:00:34.7]} 33. Qa6 {[%clk 0:02:04.7]}
33... g5 {[%clk 0:00:26.6]} 34. Qxc6 {[%clk 0:02:04.6]} 34... Rde7 {[%clk
0:00:28.3]} 35. f5 {[%clk 0:01:20.9]} 35... Bxe5 {[%clk 0:00:29.5]} 36. Bb4
{[%clk 0:01:22.3]} 36... Bxb2 {[%clk 0:00:10.3]} 37. Qh6 {[%clk 0:01:17.3]}
37... Bg7 {[%clk 0:00:05.2]} 38. Qxg5 {[%clk 0:01:15.6]} 38... f6 {[%clk
0:00:06.8]} 39. Qg6 {[%clk 0:01:13.3]} 39... Re4 {[%clk 0:00:06.1]} 40. Bd2
{[%clk 0:01:13.6]} 40... Rd8 {[%clk 0:00:05.7]} 41. Bh6 {[%clk 0:00:56]} 41...
Rd7 {[%clk 0:00:07.1]} 42. Kf2 {[%clk 0:00:56.3]} 42... Kh8 {[%clk 0:00:04.2]}
43. g5 {[%clk 0:00:44.5]} 1-0